bitfinex-derivatives/quotes_ETHF0:USTF0_20230902
["timestamp","ask_amount","ask_price","bid_price","bid_amount"]
[1693632851901,0.69692638,1635.9,1635.8,25.65622808]
[1693632860904,0.69692638,1635.9,1635.8,32.06208209]
[1693632861109,0.69692638,1635.9,1635.8,24.85636448]
[1693632867916,0.69692638,1635.9,1635.8,25.65622808]
[1693632869024,0.75802638,1635.9,1635.8,25.65622808]
[1693632870227,0.69692638,1635.9,1635.8,25.65622808]
[1693632870726,0.45108438,1635.9,1635.8,25.65622808]
[1693632883035,0.45108438,1635.9,1635.8,18.45051047]
[1693632883235,0.45108438,1635.9,1635.8,26.45686337]
[1693632885441,0.45108438,1635.9,1635.8,17.54505352]
[1693632885738,0.45108438,1635.9,1635.8,26.4364633]
[1693632889933,0.45108438,1635.9,1635.8,33.64108581]
[1693632890135,0.45108438,1635.9,1635.8,25.63519164]
[1693632893232,0.0611,1636.0,1635.9,2.26993648]
[1693632893439,0.0611,1636.0,1635.9,24.23599207]
[1693632894939,2.5996,1636.0,1635.9,24.23599207]
[1693632897950,1.7513057,1636.0,1635.9,24.23599207]
[1693632898149,4.1740057,1636.0,1635.9,17.89381209]
[1693632898446,4.1740057,1636.0,1635.9,25.0984346]
[1693632903153,4.2351057,1636.0,1635.9,25.0984346]
[1693632905049,4.2351057,1636.0,1635.9,24.29537393]
[1693632913055,4.2351057,1636.0,1635.9,17.89381209]
[1693632913461,4.2351057,1636.0,1635.9,25.0984346]
[1693632921468,4.2351057,1636.0,1635.9,25.03908438]
[1693632923070,2.94981549,1636.0,1635.9,25.03908438]
[1693632925076,2.25002459,1636.0,1635.9,25.03908438]
[1693632928178,2.25002459,1636.0,1635.9,24.23947628]
[1693632928372,4.63402459,1636.0,1635.9,24.23947628]
[1693632935488,4.63402459,1636.0,1635.9,25.03908438]
[1693632944797,4.63402459,1636.0,1635.9,22.7691479]
[1693632950304,4.63402459,1636.0,1635.9,29.17220844]
[1693632950700,4.63402459,1636.0,1635.9,21.97082017]
[1693632965415,3.40424004,1636.0,1635.9,29.17220844]
[1693632965606,3.40424004,1636.0,1635.9,22.7691479]
[1693632968613,3.40424004,1636.0,1635.9,22.66119946]
[1693632980620,3.40424004,1636.0,1635.9,29.06425922]
[1693632981021,3.40424004,1636.0,1635.9,21.86077626]
[1693632988730,3.40424004,1636.0,1635.9,15.4577165]
[1693632988924,3.40424004,1636.0,1635.9,22.66119946]
[1693632995850,3.40424004,1636.0,1635.9,29.06322136]
[1693632996244,3.40424004,1636.0,1635.9,21.8597384]
[1693632999647,3.40424004,1636.0,1635.9,21.7987384]
[1693632999850,18.08116004,1636.0,1635.9,5.52207954]
[1693633000254,18.08116004,1636.0,1635.8,5.60203729]
[1693633000255,18.08116004,1636.0,1635.8,4.80272304]
[1693633000548,5.5651,1635.9,1635.8,4.80272304]
[1693633000750,14.73858,1635.9,1635.8,4.80272304]
[1693633000952,0.0611,1635.8,1635.7,5.60203729]
[1693633001157,6.94163,1635.8,1635.7,5.60203729]
[1693633001955,6.94163,1635.8,1635.6,16.59150919]
[1693633002153,6.94163,1635.8,1635.6,10.18948729]
[1693633003953,6.94163,1635.8,1635.7,5.60203729]
[1693633004154,9.39063,1635.8,1635.7,5.60203729]
[1693633005359,11.84783,1635.8,1635.7,5.60203729]
[1693633005554,14.14134,1635.8,1635.7,5.60203729]
[1693633009057,14.14134,1635.8,1635.6,7.95675729]
[1693633009749,14.14134,1635.8,1635.6,7.89579729]
[1693633009955,5.5651,1635.7,1635.6,5.60203729]
[1693633010251,5.5651,1635.7,1635.5,10.18975729]
[1693633010252,0.0611,1635.6,1635.5,10.18975729]
[1693633010455,9.35497,1635.6,1635.5,10.18979729]
[1693633010652,11.86797,1635.6,1635.5,10.18979729]
[1693633013558,11.86797,1635.6,1635.5,7.89586729]
[1693633016456,11.86797,1635.6,1635.5,7.88493071]
[1693633016759,11.86797,1635.6,1635.5,10.17886071]
[1693633017951,11.86797,1635.6,1635.5,7.88503071]
[1693633018959,11.86797,1635.6,1635.5,7.08544453]
[1693633019959,11.86797,1635.6,1635.5,9.37937453]
[1693633021157,11.86797,1635.6,1635.5,4.58786]
[1693633021961,11.86797,1635.6,1635.5,9.37937453]
[1693633022257,11.86797,1635.6,1635.5,4.58786]
[1693633025965,11.86797,1635.6,1635.5,9.37937453]
[1693633029567,11.86797,1635.6,1635.5,4.58786]
[1693633030062,11.86797,1635.6,1635.5,2.29393]
[1693633030769,11.86797,1635.6,1635.5,9.37939783]
[1693633031970,17.37197,1635.6,1635.5,9.37939783]
[1693633033273,17.37197,1635.6,1635.5,4.58786]
[1693633037771,17.37197,1635.6,1635.5,9.37939783]
[1693633038469,17.37197,1635.6,1635.5,2.29392]
[1693633038674,17.37197,1635.6,1635.5,3.99468932]
[1693633039075,17.37197,1635.6,1635.4,4.64893]
[1693633039270,11.86797,1635.6,1635.5,3.99486865]
[1693633039472,19.66576,1635.6,1635.4,4.64893]
[1693633039674,5.504,1635.5,1635.4,4.64893]
[1693633039970,12.38576,1635.5,1635.4,7.14649783]
[1693633040175,12.38576,1635.5,1635.4,2.35496]
[1693633040973,12.38576,1635.5,1635.4,7.14649783]
[1693633041173,12.38576,1635.5,1635.4,2.35496]
[1693633041371,12.38576,1635.5,1635.4,7.94606071]
[1693633041677,12.38576,1635.5,1635.4,5.65210071]
[1693633041879,14.67968,1635.5,1635.4,0.061]
[1693633042077,14.67968,1635.5,1635.4,4.85638453]
[1693633042273,14.74078,1635.5,1635.4,4.79538453]
[1693633044879,0.0611,1635.4,1635.3,4.85638453]
[1693633045077,9.43768,1635.4,1635.3,4.85638453]
[1693633045277,12.04988,1635.4,1635.3,4.85638453]
[1693633045476,14.34394,1635.4,1635.3,4.85638453]
[1693633045681,19.84794,1635.4,1635.3,4.85638453]
[1693633046185,19.84794,1635.4,1635.3,4.79538453]
[1693633048272,19.84794,1635.4,1635.2,4.85638453]
[1693633048689,19.84794,1635.4,1635.2,0.061]
[1693633048980,19.84794,1635.4,1635.2,4.85638453]
[1693633049180,19.84794,1635.4,1635.2,0.061]
[1693633050283,19.84794,1635.4,1635.3,3.99736157]
[1693633050483,19.84794,1635.4,1635.2,0.061]
[1693633051088,19.84794,1635.4,1635.3,3.99711053]
[1693633051776,19.84794,1635.4,1635.2,2.35532]
[1693633051980,19.84794,1635.4,1635.2,0.061]
[1693633052184,19.84794,1635.4,1635.3,3.9968661]
[1693633056390,19.84794,1635.4,1635.2,7.15069453]
[1693633056778,19.84794,1635.4,1635.3,4.79538453]
[1693633056986,19.84794,1635.4,1635.2,2.35531]
[1693633056987,19.84794,1635.4,1635.2,7.15069453]
[1693633057188,19.84794,1635.4,1635.2,9.44501453]
[1693633057990,19.84794,1635.4,1635.2,7.15069453]
[1693633060987,19.84794,1635.4,1635.2,4.85638453]
[1693633061184,19.84794,1635.4,1635.2,7.15072453]
[1693633061986,5.504,1635.3,1635.2,7.15072453]
[1693633062185,12.3866,1635.3,1635.2,7.15072453]
[1693633062590,12.3866,1635.3,1635.2,0.061]
[1693633062790,12.3866,1635.3,1635.2,7.15072453]
[1693633063191,12.4478,1635.3,1635.2,2.29434]
[1693633072093,12.3866,1635.3,1635.2,2.35534]
[1693633072503,12.3866,1635.3,1635.2,4.64968]
[1693633074695,12.88852543,1635.3,1635.2,4.64968]
[1693633074899,12.88852543,1635.3,1635.2,0.061]
[1693633075102,12.88852543,1635.3,1635.2,2.35534]
[1693633077102,12.88852543,1635.3,1635.2,0.061]
[1693633078303,15.18272543,1635.3,1635.2,0.061]
[1693633078606,15.18272543,1635.3,1635.2,4.85638453]
[1693633082306,15.24392543,1635.3,1635.2,4.79538453]
[1693633082507,0.0612,1635.2,1635.1,4.85638453]
[1693633082806,17.32696,1635.2,1635.1,4.79538453]
[1693633083010,19.93806,1635.2,1635.1,4.85638453]
[1693633086609,19.93806,1635.2,1635.1,0.061]
[1693633092425,19.93806,1635.2,1635.0,4.85638453]
[1693633092621,14.43406,1635.2,1635.1,3.5522007]
[1693633092825,14.43406,1635.2,1635.1,3.202564]
[1693633092826,19.93806,1635.2,1635.1,3.202564]
[1693633093628,19.93806,1635.2,1634.9,4.79538453]
[1693633093825,5.504,1635.0,1634.9,4.79538453]
[1693633094025,14.68248,1635.0,1634.9,4.79538453]
[1693633094425,14.74368,1635.0,1634.9,4.79538453]
[1693633094830,17.12218,1635.0,1634.9,4.79538453]
[1693633095031,19.68618,1635.0,1634.9,4.79538453]
[1693633095222,19.68618,1635.0,1634.8,4.85638453]
[1693633095427,5.504,1634.9,1634.8,4.85638453]
[1693633095728,14.68308,1634.9,1634.8,4.85638453]
[1693633099141,14.74428,1634.9,1634.8,4.79538453]
[1693633099436,0.0612,1634.8,1634.7,7.19658453]
[1693633099627,17.26514,1634.8,1634.7,7.19658453]
[1693633100636,17.26514,1634.8,1634.7,2.4012]
[1693633103541,17.26514,1634.8,1634.7,4.69624]
[1693633104439,17.26514,1634.8,1634.7,2.4012]
[1693633105929,17.26514,1634.8,1634.7,4.69624]
[1693633106333,17.26514,1634.8,1634.7,2.4012]
[1693633106638,17.32634,1634.8,1634.7,4.69625]
[1693633107642,17.32634,1634.8,1634.7,4.69624]
[1693633109641,15.03143,1634.8,1634.7,4.69624]
[1693633118241,5.504,1634.8,1634.7,7.62440352]
[1693633118541,0.4865454,1634.9,1634.8,0.061]
[1693633118746,12.3881,1635.0,1634.8,6.9457]
[1693633118942,12.3881,1635.0,1634.9,6.92524381]
[1693633119245,12.3881,1635.0,1634.9,7.51768352]
[1693633119642,12.3881,1635.0,1634.9,5.22292352]
[1693633121848,7.38551752,1635.0,1634.9,5.22292352]
[1693633123345,7.38551752,1635.0,1634.9,5.16192352]
[1693633124839,7.38551752,1635.0,1634.9,9.16232476]
[1693633125549,7.38551752,1635.0,1634.9,5.16192352]
[1693633126143,7.44671752,1635.0,1634.9,5.16192352]
[1693633131052,7.44671752,1635.0,1634.9,7.09014453]
[1693633131653,9.84461752,1635.0,1634.9,7.09014453]
[1693633131858,15.34861752,1635.0,1634.9,4.79538453]
[1693633133751,17.64336752,1635.0,1634.9,4.79538453]
[1693633133952,17.64336752,1635.0,1634.8,4.79538453]
[1693633134263,9.43468,1634.9,1634.8,4.80515028]
[1693633134656,14.93868,1634.9,1634.7,14.87720071]
[1693633134865,14.93868,1634.9,1634.8,5.59110071]
[1693633138859,14.93868,1634.9,1634.8,4.80849823]
[1693633141565,17.23344,1634.9,1634.8,4.80849823]
[1693633141763,17.23344,1634.9,1634.8,7.10339823]
[1693633142264,17.23344,1634.9,1634.8,4.80849823]
[1693633146073,17.23344,1634.9,1634.8,5.59110071]
[1693633146764,2.5504,1634.9,1634.8,20.90796423]
[1693633146966,2.5504,1634.9,1634.8,23.20286423]
[1693633147864,7.44672752,1635.0,1634.8,23.20286423]
[1693633148059,7.44672752,1635.0,1634.9,2.26993648]
[1693633148267,7.44672752,1635.0,1634.9,6.85945648]
[1693633148768,10.03792752,1635.0,1634.9,6.85945648]
[1693633151667,10.03792752,1635.0,1634.9,12.4684058]
[1693633151961,10.03792752,1635.0,1634.9,6.85945648]
[1693633152164,10.03792752,1635.0,1634.9,12.4684058]
[1693633154165,10.03792752,1635.0,1634.9,6.85945648]
[1693633154765,10.03792752,1635.0,1634.9,12.4684058]
[1693633154964,10.03792752,1635.0,1634.9,6.85945648]
[1693633155175,10.03792752,1635.0,1634.9,12.4684058]
[1693633155774,10.03792752,1635.0,1634.9,6.85945648]
[1693633156675,10.03792752,1635.0,1634.9,4.56469648]
[1693633156977,10.03792752,1635.0,1634.9,6.85945648]
[1693633157167,10.03792752,1635.0,1634.9,12.4684058]
[1693633160982,10.03792752,1635.0,1634.9,17.27660257]
[1693633161180,10.03792752,1635.0,1634.9,11.66765325]
[1693633161771,10.03792752,1635.0,1634.9,6.85945648]
[1693633161978,10.03792752,1635.0,1634.9,11.66765325]
[1693633165484,10.03792752,1635.0,1634.9,9.39771677]
[1693633166080,10.03792752,1635.0,1634.9,9.39813442]
[1693633166785,15.54192752,1635.0,1634.9,4.58952]
[1693633167083,17.99982752,1635.0,1634.9,2.29476]
[1693633169077,17.99982752,1635.0,1634.9,7.10337442]
[1693633172382,20.29457752,1635.0,1634.9,4.80861442]
[1693633174683,21.23369644,1635.0,1634.9,4.80861442]
[1693633176092,21.23369644,1635.0,1634.8,9.45936442]
[1693633176386,5.504,1634.9,1634.8,9.45936442]
[1693633176594,12.38828,1634.9,1634.8,9.45936442]
[1693633183998,12.38828,1634.9,1634.8,12.32652794]
[1693633184301,12.38828,1634.9,1634.8,13.12796367]
[1693633184502,12.38828,1634.9,1634.8,10.26080015]
[1693633191212,12.38828,1634.9,1634.8,9.45978236]
[1693633199219,12.38828,1634.9,1634.8,10.26080015]
[1693633200024,12.38828,1634.9,1634.8,10.24080015]
[1693633200923,12.38828,1634.9,1634.8,13.10796367]
[1693633201924,12.38828,1634.9,1634.8,10.24080015]
[1693633202622,12.38828,1634.9,1634.8,12.53570015]
[1693633204424,12.38828,1634.9,1634.8,15.40286367]
[1693633204922,12.38828,1634.9,1634.8,12.53570015]
[1693633205126,12.38828,1634.9,1634.8,15.40286367]
[1693633207030,10.09352,1634.9,1634.8,12.53570015]
[1693633207426,10.09352,1634.9,1634.8,15.40286367]
[1693633214428,10.09352,1634.9,1634.8,14.60238021]
[1693633214829,10.09352,1634.9,1634.8,11.73521669]
[1693633218133,12.38828,1634.9,1634.8,11.73521669]
[1693633221336,12.38828,1634.9,1634.8,12.53570015]
[1693633221529,12.38828,1634.9,1634.8,15.40286367]
[1693633222233,10.09352,1634.9,1634.8,15.40286367]
[1693633229448,10.09352,1634.9,1634.8,14.59935896]
[1693633231449,10.09352,1634.9,1634.8,11.73219544]
[1693633232651,10.09874679,1634.9,1634.8,11.73219544]
[1693633236453,10.09874679,1634.9,1634.8,12.53570015]
[1693633237255,10.09874679,1634.9,1634.8,15.40286367]
[1693633239155,10.09874679,1634.9,1634.8,12.53570015]
[1693633245858,12.39350679,1634.9,1634.8,12.53570015]
[1693633246361,12.39350679,1634.9,1634.8,10.24080015]
[1693633249565,14.74946679,1634.9,1634.8,5.61005015]
[1693633249760,14.74946679,1634.9,1634.8,4.80568046]
[1693633249957,14.74946679,1634.9,1634.8,7.10058046]
[1693633250466,12.45470679,1634.9,1634.8,7.10058046]
[1693633250965,12.45470679,1634.9,1634.8,9.39548046]
[1693633259875,12.45470679,1634.9,1634.8,12.26264398]
[1693633262471,12.45470679,1634.9,1634.8,9.39548046]
[1693633270678,12.39350679,1634.9,1634.8,9.39548046]
[1693633271878,12.39350679,1634.9,1634.8,9.43648046]
[1693633272780,12.39350679,1634.9,1634.8,12.30364398]
[1693633273681,12.39350679,1634.9,1634.8,9.43648046]
[1693633273881,12.39350679,1634.9,1634.8,10.24085015]
[1693633279578,12.39350679,1634.9,1634.8,4.84669055]
[1693633279877,14.68826679,1634.9,1634.8,4.84669055]
[1693633281982,14.68826679,1634.9,1634.8,0.041]
[1693633284685,0.0612,1634.8,1634.7,4.80569055]
[1693633284984,9.4861,1634.8,1634.7,4.80569055]
[1693633285183,9.4861,1634.8,1634.6,11.73202055]
[1693633285585,0.00521705,1634.7,1634.6,9.43690055]
[1693633285786,6.89033705,1634.7,1634.6,12.30406407]
[1693633287580,6.89033705,1634.7,1634.6,9.43690055]
[1693633288884,6.89033705,1634.7,1634.6,11.04269589]
[1693633290189,6.89033705,1634.7,1634.6,10.23665314]
[1693633291483,6.89033705,1634.7,1634.6,13.10381666]
[1693633292791,6.89033705,1634.7,1634.6,10.23665314]
[1693633293797,6.89033705,1634.7,1634.6,13.10381666]
[1693633294094,6.89033705,1634.7,1634.6,10.23665314]
[1693633294289,6.89033705,1634.7,1634.6,7.94154314]
[1693633294589,6.89033705,1634.7,1634.6,10.23672314]
[1693633295891,6.89033705,1634.7,1634.6,7.94154314]
[1693633296096,6.89033705,1634.7,1634.6,10.23672314]
[1693633297797,6.89033705,1634.7,1634.6,13.10388666]
[1693633297993,12.39433705,1634.7,1634.6,9.43543308]
[1693633298194,12.39433705,1634.7,1634.6,7.14025308]
[1693633299096,12.39433705,1634.7,1634.6,7.14034308]
[1693633299394,12.89066541,1634.7,1634.6,7.14034308]
[1693633299589,12.89066541,1634.7,1634.6,4.84515308]
[1693633299794,15.24691541,1634.7,1634.6,4.80415308]
[1693633300198,0.0612,1634.6,1634.5,7.14037308]
[1693633300495,9.56184476,1634.6,1634.5,7.14037308]
[1693633300796,12.56548136,1634.6,1634.5,7.14037308]
[1693633301889,18.06948136,1634.6,1634.5,7.14037308]
[1693633303994,18.06948136,1634.6,1634.5,2.33622]
[1693633304298,15.52978136,1634.6,1634.5,2.29522]
[1693633304603,17.82498136,1634.6,1634.3,6.88664]
[1693633304797,5.504,1634.4,1634.3,4.59108]
[1693633304997,12.39038,1634.4,1634.3,4.59108]
[1693633305601,14.89846693,1634.4,1634.3,4.59108]
[1693633306101,14.89846693,1634.4,1634.3,2.29553]
[1693633306501,14.89846693,1634.4,1634.2,14.09619308]
[1693633306694,10.0952,1634.3,1634.2,14.09619308]
[1693633306893,12.3908,1634.3,1634.2,11.80048308]
[1693633307501,12.452,1634.3,1634.2,9.50480308]
[1693633308206,12.452,1634.3,1634.2,4.70065]
[1693633308401,12.452,1634.3,1634.2,6.9964]
[1693633309501,12.452,1634.3,1634.2,4.5914]
[1693633309701,14.9541,1634.3,1634.2,4.5914]
[1693633315911,14.9541,1634.3,1634.2,2.29565]
[1693633316508,14.95928331,1634.3,1634.2,2.29565]
[1693633316907,14.95928331,1634.3,1634.2,4.59141]
[1693633318002,15.45702579,1634.3,1634.2,2.29565]
[1693633318905,15.45702579,1634.3,1634.2,4.59141]
[1693633319108,15.45702579,1634.3,1634.2,7.78811166]
[1693633320407,15.45702579,1634.3,1634.2,5.49235166]
[1693633322112,15.45702579,1634.3,1634.2,7.78811166]
[1693633325215,0.50292579,1634.3,1634.2,15.24678518]
[1693633325508,5.504,1634.6,1634.2,17.55408352]
[1693633325717,5.504,1634.6,1634.5,11.57797966]
[1693633325911,5.504,1634.6,1634.5,14.44514318]
[1693633326111,7.79918,1634.6,1634.5,14.44514318]
[1693633326309,7.79918,1634.6,1634.5,15.24404307]
[1693633326513,7.80399991,1634.6,1634.5,15.24404307]
[1693633326720,7.80399991,1634.6,1634.5,17.51397955]
[1693633327111,7.80399991,1634.6,1634.5,14.31838]
[1693633327817,10.09918991,1634.6,1634.5,18.31287944]
[1693633328322,10.09918991,1634.6,1634.5,16.01787955]
[1693633328614,7.80399991,1634.6,1634.5,16.01787955]
[1693633329411,10.09919991,1634.6,1634.5,16.01787955]
[1693633329616,12.70079991,1634.6,1634.5,16.01787955]
[1693633330512,12.70079991,1634.6,1634.5,13.74794307]
[1693633331817,10.40559991,1634.6,1634.5,16.04327307]
[1693633332818,12.70079991,1634.6,1634.5,16.04327307]
[1693633334318,12.70079991,1634.6,1634.5,15.2458461]
[1693633338919,12.70079991,1634.6,1634.5,12.37868258]
[1693633339120,12.70079991,1634.6,1634.5,12.3799577]
[1693633340219,12.70079991,1634.6,1634.5,12.04845352]
[1693633341125,12.70079991,1634.6,1634.5,16.04678814]
[1693633341325,12.70079991,1634.6,1634.5,12.04845352]
[1693633342629,12.70079991,1634.6,1634.5,9.18129]
[1693633343328,12.70079991,1634.6,1634.5,12.04845352]
[1693633345833,27.35238991,1634.6,1634.5,4.00124875]
[1693633346529,27.35238991,1634.6,1634.4,4.00124875]
[1693633346725,5.5652,1634.5,1634.4,4.00124875]
[1693633347225,15.23835344,1634.5,1634.4,4.00124875]
[1693633347531,15.24316511,1634.5,1634.4,4.00124875]
[1693633348330,15.24316511,1634.5,1634.4,6.29671875]
[1693633349232,0.0612,1634.4,1634.3,6.88665]
[1693633349430,14.96741,1634.4,1634.3,10.88928356]
[1693633350337,14.96741,1634.4,1634.3,8.59371356]
[1693633356535,14.96741,1634.4,1634.3,4.59108]
[1693633359631,14.96741,1634.4,1634.3,9.38908155]
[1693633360840,14.96741,1634.4,1634.3,11.68470155]
[1693633361143,14.96741,1634.4,1634.3,11.69019128]
[1693633361638,14.97220453,1634.4,1634.3,11.69019128]
[1693633363236,14.91100453,1634.4,1634.3,11.69019128]
[1693633363440,0.00479453,1634.4,1634.3,22.45704797]
[1693633363642,0.00479453,1634.4,1634.3,17.65355669]
[1693633364735,0.00479453,1634.4,1634.3,23.15755669]
[1693633367143,0.00479453,1634.4,1634.3,17.55348352]
[1693633367839,0.00479453,1634.4,1634.3,23.95813857]
[1693633371544,0.00479453,1634.4,1634.3,28.76063131]
[1693633371743,0.00479453,1634.4,1634.3,22.35597626]
[1693633379749,0.00479453,1634.4,1634.3,17.53428352]
[1693633380048,0.00479453,1634.4,1634.3,23.93893857]
[1693633382049,0.00479453,1634.4,1634.3,23.93654374]
[1693633385346,2.47349453,1634.4,1634.3,23.93654374]
[1693633389849,2.53469453,1634.4,1634.3,23.93654374]
[1693633391344,4.99969453,1634.4,1634.3,23.93654374]
[1693633394549,4.99969453,1634.4,1634.3,29.53742352]
[1693633394956,4.99969453,1634.4,1634.3,23.1351633]
[1693633398256,4.99969453,1634.4,1634.3,20.26799978]
[1693633399055,4.99969453,1634.4,1634.3,14.76399978]
[1693633399352,7.29516453,1634.4,1634.3,13.9654546]
[1693633399556,7.29516453,1634.4,1634.3,9.16312]
[1693633399858,7.29516453,1634.4,1634.3,13.9654546]
[1693633400757,9.59063453,1634.4,1634.3,13.9654546]
[1693633401754,9.59063453,1634.4,1634.3,14.76399978]
[1693633402652,7.29516453,1634.4,1634.3,14.76399978]
[1693633405059,9.59062453,1634.4,1634.3,14.76399978]
[1693633405665,7.29515453,1634.4,1634.3,14.76399978]
[1693633408769,7.29515453,1634.4,1634.3,13.96995792]
[1693633411964,12.79915453,1634.4,1634.3,13.96995792]
[1693633416674,12.79915453,1634.4,1634.3,9.16312]
[1693633416878,12.79915453,1634.4,1634.3,14.76399978]
[1693633421573,10.50369453,1634.4,1634.3,14.76399978]
[1693633421772,12.79915453,1634.4,1634.3,14.76399978]
[1693633421973,15.09461453,1634.4,1634.3,14.76399978]
[1693633423779,15.09461453,1634.4,1634.3,13.97038545]
[1693633428788,12.79915453,1634.4,1634.3,13.97038545]
[1693633431778,12.79915453,1634.4,1634.3,14.76399978]
[1693633434582,17.39007453,1634.4,1634.3,12.46837978]
[1693633435487,15.09461453,1634.4,1634.3,12.46837978]
[1693633436086,17.39007453,1634.4,1634.3,10.17275978]
[1693633436282,18.31015758,1634.4,1634.3,10.17275978]
[1693633436479,18.31015758,1634.4,1634.3,9.38112835]
[1693633436684,18.31015758,1634.4,1634.3,7.08558835]
[1693633437183,18.31015758,1634.4,1634.3,4.80924835]
[1693633437383,18.31015758,1634.4,1634.3,7.10484835]
[1693633437895,20.60561758,1634.4,1634.3,7.10484835]
[1693633438493,20.60561758,1634.4,1634.3,4.80924835]
[1693633438897,20.60561758,1634.4,1634.2,9.40055835]
[1693633439098,5.504,1634.3,1634.2,11.69622835]
[1693633439398,12.3908,1634.3,1634.2,9.40055835]
[1693633439599,12.39558899,1634.3,1634.2,9.40055835]
[1693633439993,12.39558899,1634.3,1634.2,11.69629835]
[1693633440194,12.39558899,1634.3,1634.2,9.40055835]
[1693633446897,12.39558899,1634.3,1634.2,10.19218978]
[1693633447502,14.69118899,1634.3,1634.2,10.19218978]
[1693633451702,15.19199147,1634.3,1634.2,10.19218978]
[1693633452110,12.89639147,1634.3,1634.2,10.19218978]
[1693633457314,12.89639147,1634.3,1634.2,4.59131]
[1693633459523,12.89639147,1634.3,1634.2,9.40061341]
[1693633461918,12.89639147,1634.3,1634.2,4.59131]
[1693633462224,12.89639147,1634.3,1634.2,6.88705]
[1693633469127,12.89639147,1634.3,1634.2,12.48792978]
[1693633471829,12.89639147,1634.3,1634.2,15.3550933]
[1693633477033,10.60079147,1634.3,1634.2,15.3550933]
[1693633477826,12.89639147,1634.3,1634.2,15.3550933]
[1693633480934,12.89639147,1634.3,1634.2,10.19218978]
[1693633481133,15.27689147,1634.3,1634.2,10.19218978]
[1693633482332,15.27689147,1634.3,1634.2,10.19225978]
[1693633484125,15.27689147,1634.3,1634.2,9.40725903]
[1693633487237,15.27689147,1634.3,1634.2,11.70298903]
[1693633488542,15.27689147,1634.3,1634.2,4.59138]
[1693633489128,15.33809147,1634.3,1634.2,4.59138]
[1693633489337,15.33809147,1634.3,1634.1,9.40735903]
[1693633489338,0.0612,1634.2,1634.1,4.0934801]
[1693633489532,14.86107,1634.2,1634.1,4.0934801]
[1693633489736,14.86566575,1634.2,1634.1,1.7976901]
[1693633489938,17.16135575,1634.2,1634.0,11.70360903]
[1693633490137,5.504,1634.1,1634.0,9.40768903]
[1693633490440,12.39149,1634.1,1634.0,9.40768903]
[1693633490640,14.94599,1634.1,1634.0,9.40768903]
[1693633491942,14.94599,1634.1,1634.0,4.59181]
[1693633492142,14.94599,1634.1,1634.0,10.19268978]
[1693633493937,14.94599,1634.1,1634.0,7.89677978]
[1693633494140,14.94599,1634.1,1634.0,10.19278978]
[1693633496245,14.94599,1634.1,1634.0,12.48879978]
[1693633496441,14.94599,1634.1,1634.0,10.19278978]
[1693633496646,14.95058104,1634.1,1634.0,10.19278978]
[1693633497043,14.95058104,1634.1,1634.0,12.48878978]
[1693633497348,14.95058104,1634.1,1634.0,10.19277978]
[1693633497947,14.95058104,1634.1,1634.0,12.48874978]
[1693633498446,14.95058104,1634.1,1634.0,6.88787]
[1693633498947,14.95058104,1634.1,1634.0,10.19274978]
[1693633499146,14.95058104,1634.1,1634.0,12.48871978]
[1693633499341,14.95058104,1634.1,1634.0,6.88784]
[1693633500353,14.95058104,1634.1,1634.0,4.59187]
[1693633501348,15.42889305,1634.1,1634.0,4.59187]
[1693633503055,0.0612,1634.0,1633.9,11.6986877]
[1693633503351,14.90418,1634.0,1633.9,11.6987677]
[1693633503552,14.90418,1634.0,1633.9,9.4026677]
[1693633503849,14.90418,1634.0,1633.9,6.88806]
[1693633504461,14.90418,1634.0,1633.9,11.6987677]
[1693633504956,14.90418,1634.0,1633.9,6.88806]
[1693633506357,14.90418,1634.0,1633.9,12.48893978]
[1693633506556,14.90418,1634.0,1633.9,4.59196]
[1693633506858,14.90418,1634.0,1633.9,9.40220852]
[1693633507152,14.90418,1634.0,1633.9,7.10618852]
[1693633507356,17.20014,1634.0,1633.9,7.10618852]
[1693633507558,17.20014,1634.0,1633.9,9.40228852]
[1693633508459,14.90418,1634.0,1633.9,9.40228852]
[1693633509364,14.90418,1634.0,1633.9,11.69838852]
[1693633509570,14.90418,1634.0,1633.9,9.40228852]
[1693633511665,14.90874577,1634.0,1633.9,9.40228852]
[1693633513570,17.20470577,1634.0,1633.9,9.40228852]
[1693633514165,14.90874577,1634.0,1633.9,9.40228852]
[1693633514372,14.90874577,1634.0,1633.9,8.59980387]
[1693633514870,5.50856577,1634.0,1633.9,16.85910461]
[1693633515065,0.47831201,1634.1,1633.9,22.36310461]
[1693633515265,5.504,1634.2,1633.9,22.36310461]
[1693633515465,5.504,1634.2,1634.1,13.18928101]
[1693633516071,5.504,1634.2,1634.1,16.05644453]
[1693633516974,5.504,1634.2,1634.1,12.05024352]
[1693633521474,5.504,1634.2,1634.1,16.85794461]
[1693633522672,5.50840396,1634.2,1634.1,16.85794461]
[1693633525979,7.80409396,1634.2,1634.1,16.85794461]
[1693633532677,7.80622976,1634.2,1634.1,16.85794461]
[1693633534979,7.86742976,1634.2,1634.1,16.85794461]
[1693633536578,7.86742976,1634.2,1634.1,12.05024352]
[1693633543681,10.16311976,1634.2,1634.1,12.05024352]
[1693633543881,12.76511976,1634.2,1634.1,12.05024352]
[1693633544685,12.76511976,1634.2,1634.1,16.85794461]
[1693633547587,8.11253976,1634.2,1634.1,16.85794461]
[1693633547887,0.00653976,1634.2,1634.1,23.96451164]
[1693633548090,7.9338,1634.5,1634.2,2.26993648]
[1693633548292,7.9338,1634.5,1634.3,19.15504332]
[1693633548486,7.9338,1634.5,1634.4,2.26993648]
[1693633548693,7.9338,1634.5,1634.4,11.45153648]
[1693633551694,7.9338,1634.5,1634.4,15.45838698]
[1693633552992,10.22906,1634.5,1634.4,15.45838698]
[1693633555701,10.23509482,1634.5,1634.4,15.45838698]
[1693633559704,10.23509482,1634.5,1634.4,11.45153648]
[1693633560404,10.23509482,1634.5,1634.4,16.26171628]
[1693633560806,7.93983482,1634.5,1634.4,16.26171628]
[1693633565612,7.93983482,1634.5,1634.4,11.45153648]
[1693633567911,2.43583482,1634.5,1634.4,11.45153648]
[1693633574809,2.43583482,1634.5,1634.4,15.45841919]
[1693633575513,2.43583482,1634.5,1634.4,20.96241919]
[1693633577315,2.43583482,1634.5,1634.4,10.89308271]
[1693633577316,14.88681482,1634.5,1634.4,10.89308271]
[1693633577520,14.88681482,1634.5,1634.4,6.8862]
[1693633577915,14.88681482,1634.5,1634.4,10.89308271]
[1693633578220,14.88681482,1634.5,1634.4,10.09220991]
[1693633578415,14.88681482,1634.5,1634.4,10.09221903]
[1693633578617,14.88681482,1634.5,1634.4,6.8862]
[1693633579117,14.88681482,1634.5,1634.4,10.09236553]
[1693633579619,14.88681482,1634.5,1634.4,6.8862]